Cogmind - Beta 11.1 *** ADVENTURER MODE // 2022.12.18 @ 14:54:20 Player: onura46 Result: Destroyed by as-50254 with Assembled Heavy Rifle Performance ------------- Evolutions (1) 500 Regions Visited (4) 800 Robots Destroyed (42) 210 Value Destroyed (1082) 1082 Prototype IDs (0) 0 Alien Tech Used (0) 0 Bonus (65) 65 TOTAL SCORE: 2657 Bonus ------- High Alert Combat Kills 12 Follower Combat Kills 53 Cogmind --------- Core Integrity 0/400 Matter 300/300 Energy 20/100 System Corruption 5% Temperature Cool (0) Movement Core (150) Ox2 Location -9/Mines Parts ------- > --- POWER (1) -------- (None) > --- PROPULSION (2) --- (None) > --- UTILITY (4) ------ Small Storage Unit Targeting Computer > --- WEAPON (2) ------- EM Pulse Gun > --- INVENTORY (8) ---- Light Ion Engine Improved Terrain Scanner Peak State ------------ > --- POWER ------------ Light Nuclear Core > --- PROPULSION ------- Aluminum Leg Aluminum Leg > --- UTILITY ---------- Heat Sink Weight Redist. System Targeting Computer Light Armor Plating > --- WEAPON ----------- Particle Gun Particle Cannon > --- INVENTORY -------- Aluminum Leg Small Laser Grenade Launcher [Rating: 14] Favorites ----------- Power Light Ion Engine Engine Light Ion Engine Power Core Light Nuclear Core Propulsion Aluminum Leg Leg Aluminum Leg Utility Targeting Computer Device Heat Sink Storage Small Storage Unit Processor Targeting Computer Protection Light Armor Plating Weapon Particle Cannon Energy Gun Beam Rifle Energy Cannon Particle Cannon Ballistic Gun Assault Rifle Launcher Grenade Launcher Build | -11 -10 -10 -9 -9 ------- Run | Scr Mat Min Mat Min Slots Evolved 2 | . . . 2 . Power . | . . . . . Propulsion . | . . . . . Utility 2 | . . . 2 . Weapon . | . . . . . Parts Attached 36 | 7 5 3 15 6 Power 7 | 1 1 1 2 2 Engine 5 | 1 1 . 1 2 Core 2 | . . 1 1 . Reactor . | . . . . . Propulsion 8 | 2 1 . 4 1 Treads . | . . . . . Leg 8 | 2 1 . 4 1 Wheel . | . . . . . Hover . | . . . . . Flight . | . . . . . Utility 11 | 2 2 1 6 . Device 3 | 1 . . 2 . Storage 2 | 1 . . 1 . Processor 3 | . 1 1 1 . Hackware . | . . . . . Protection 3 | . 1 . 2 . Artifact . | . . . . . Weapon 10 | 2 1 1 3 3 Energy Gun 4 | 1 . . 2 1 Energy Cannon 4 | . 1 1 1 1 Ballistic Gun 1 | 1 . . . . Ballistic Cannon . | . . . . . Launcher 1 | . . . . 1 Special Weapon . | . . . . . Impact Weapon . | . . . . . Slashing Weapon . | . . . . . Piercing Weapon . | . . . . . Special Melee Weapon . | . . . . . Unidentified Prototypes . | . . . . . Parts Lost 17 | . . 2 3 12 Power 5 | . . 1 1 3 Propulsion 3 | . . . . 3 Utility 4 | . . . 2 2 Weapon 5 | . . 1 . 4 Highest Loss Streak 8 | . . 1 3 8 To Critical Strikes . | . . . . . Average Slot Usage (%) 96 | . 99 97 98 80 Engine 7 | . 13 10 3 7 Core 4 | . . 2 6 . Leg 23 | . 28 28 21 15 Device 12 | . 9 . 15 15 Storage 5 | . 10 . 2 11 Processor 10 | . 3 13 13 11 Protection 8 | . 3 14 10 . Energy Gun 10 | . 14 . 10 8 Energy Cannon 13 | . 13 26 11 9 Naked Turns . | . . . . . Heaviest Build 20 | 9 11 14 20 20 Greatest Support 26 | 20 20 20 26 26 Greatest Overweight (x) 1 | . . . 1 1 Average Overweight (x) . | . . . . . Largest Inventory Capacity 8 | 5 5 5 8 8 Average Capacity 5 | 5 5 5 5 8 Most Carried 6 | 5 5 5 6 6 Average Carried 4 | 2 4 4 4 3 Final Capacity 8 | 5 5 5 8 8 Final Carried 6 | 2 3 5 6 2 Class Distribution -------------------- 59% | Mutant 40% | Scavenger-Mutant Dominant Class ---------------- Mutant | -10/Materials Mutant | -10/Mines Scavenger-Mutant | -9/Materials Mutant | -9/Mines Resources | -11 -10 -10 -9 -9 ----------- Run | Scr Mat Min Mat Min Matter Collected 584 | 297 40 38 168 41 Remotely . | . . . . . Salvage Created 1480 | 77 371 299 564 169 Parts 95 | 7 34 12 42 . Haulers Intercepted . | . . . . . Recyclers Shooed . | . . . . . Parts Field Recycled . | . . . . . Retrieved Matter . | . . . . . Parts Self-Destructed . | . . . . . Prevented . | . . . . . Kills | -11 -10 -10 -9 -9 ------- Run | Scr Mat Min Mat Min Combat Hostiles Destroyed 51 | 1 11 7 17 15 Guns 16 | 1 5 . 6 4 Cannons 30 | . 6 7 11 6 AOE 5 | . . . . 5 Classes Destroyed 8 | 2 3 1 1 1 Worker 1 | 1 . . . . Builder 1 | . 1 . . . Operator 1 | . . . 1 . Watcher 3 | . 2 . 1 . Swarmer 16 | . 6 2 8 . Grunt 17 | 1 5 3 8 . Sentry 3 | . . 2 1 . Assembled 15 | . . . . 15 Best Kill Streak 9 | 1 4 5 8 9 Combat Bots Only 9 | 1 3 5 8 9 Max Kills in Single Turn 5 | 1 2 1 1 5 Gunslinging . | . . . . . Exploded 5 | . . . . 5 Melee . | . . . . . Uniques/NPCs Destroyed . | . . . . . Combat | -11 -10 -10 -9 -9 -------- Run | Scr Mat Min Mat Min Damage Taken 2116 | 8 186 197 573 1152 Core 500 | . 55 39 137 269 Absorbed by Shields . | . . . . . Redirected to Shielding 41 | . 2 19 20 . Regen/Repaired (Parts) 30 | . . . 30 . Core Remaining (%) 81 | 100 . 62 . . Volleys Fired 100 | 5 25 12 33 25 Largest 2 | 2 2 2 2 2 Hottest 136 | 60 108 136 136 124 Shots Fired 177 | 6 50 23 59 39 Gun 75 | 6 25 4 23 17 Cannon 100 | . 25 19 36 20 Launcher 2 | . . . . 2 Special . | . . . . . Kinetic 1 | 1 . . . . Thermal 135 | . 25 19 59 32 Explosive 2 | . . . . 2 Electromagnetic 39 | 5 25 4 . 5 Robot Hit Streak 19 | 3 13 10 12 19 Robot Miss Streak 4 | 1 4 2 2 3 Penetration Max . | . . . . . Secondary Targets . | . . . . . Shots Hit Robots 119 | 5 33 18 39 24 Core Hits 77 | 3 17 10 23 24 Critical Kills . | . . . . . Critical Parts Destroyed . | . . . . . Critical Strikes 2 | . . . 2 . Burn 2 | . . . 2 . Melee Attacks . | . . . . . Impact . | . . . . . Slashing . | . . . . . Piercing . | . . . . . Sneak Attacks . | . . . . . Combat Hostiles . | . . . . . Follow-up Attacks . | . . . . . Damage Inflicted 2406 | 65 596 344 730 671 Guns 756 | 65 249 36 258 148 Cannons 1376 | . 306 308 472 290 Explosions 269 | . 37 . . 232 Melee . | . . . . . Ramming 5 | . 4 . . 1 Kinetic 13 | 13 . . . . Thermal 1787 | . 343 308 730 406 Explosive 232 | . . . . 232 Electromagnetic 369 | 52 249 36 . 32 Impact . | . . . . . Slashing . | . . . . . Piercing . | . . . . . Highest Corruption 5 | . . . . 5 Average Corruption 4 | . . . . 4 Corruption Purged . | . . . . . Corruption Blocked . | . . . . . Effects 1 | . . . . 1 Alerts 1 | . . . . 1 Overload Shots . | . . . . . Overflow Damage 14 | . 5 . . 9 Projectiles 5 | . 5 . . . Explosions 9 | . . . . 9 Melee . | . . . . . Knockbacks . | . . . . . Impact . | . . . . . Kinetic . | . . . . . Secondary . | . . . . . Self-Inflicted Damage 32 | . . . . 32 Shots 1 | . . . . 1 Rammed . | . . . . . Targets Rammed 3 | . 2 . . 1 Kicked 3 | . 2 . . 1 Crushed . | . . . . . Highest Temperature 622 | 6 240 384 622 373 Average Temperature 159 | 6 66 153 203 189 Received Heat Transfer 757 | 6 60 105 186 400 Effects 26 | . . 2 21 3 Shutdowns 5 | . . . 4 1 Energy Bleed 4 | . . 1 3 . Interference 2 | . . 1 1 . Matter Decay 1 | . . . 1 . Short Circuit 4 | . . . 3 1 Damage (minor) 3 | . . . 2 1 Damage (major) 6 | . . . 6 . Damage (core) 1 | . . . 1 . Siege Activations . | . . . . . Robots Corrupted . | . . . . . Combat Hostiles . | . . . . . Parts Fried . | . . . . . Impact Corruptions . | . . . . . Robots Melted . | . . . . . Combat Hostiles . | . . . . . Parts Melted 3 | . 1 1 1 . Heat Transferred 3602 | . 605 555 1628 814 Parts Sabotaged . | . . . . . Parts Stolen . | . . . . . Parts Stripped . | . . . . . Power Chain Reactions 1 | . 1 . . . Missiles Intercepted . | . . . . . Alert | -11 -10 -10 -9 -9 ------- Run | Scr Mat Min Mat Min Peak Influence 423 | 25 363 223 423 104 Initial 77 | . 13 53 73 77 Average 218 | 5 187 140 313 65 Maximum Alert Level 2 | . 1 1 2 . Low Security (%) 42 | 100 51 76 11 100 Level 1 35 | . 48 23 44 . Level 2 21 | . . . 44 . Level 3 . | . . . . . Level 4 . | . . . . . Level 5 . | . . . . . High Security . | . . . . . Max Security . | . . . . . Squads Dispatched 3 | . 1 . 2 . Investigation 2 | . 1 . 1 . Extermination . | . . . . . Reinforcement 1 | . . . 1 . Assault . | . . . . . Garrison . | . . . . . Intercept . | . . . . . Searches Triggered . | . . . . . Construction Impeded . | . . . . . Haulers Reinforced . | . . . . . Active Scanning Responses . | . . . . . Cargo Convoy Interrupts . | . . . . . Stealth | -11 -10 -10 -9 -9 --------- Run | Scr Mat Min Mat Min Distress Signals 2 | . 1 . 1 . Communications Jammed . | . . . . . Distress Signals . | . . . . . Times Spotted 69 | 1 14 9 28 17 Peak Tracking Total 18 | 1 4 5 5 18 Tactical Retreats 4 | . . . 1 3 Traps | -11 -10 -10 -9 -9 ------- Run | Scr Mat Min Mat Min Traps Triggered . | . . . . . Indirectly . | . . . . . Trap Hack Attempts . | . . . . . Triggered . | . . . . . Disarmed . | . . . . . Reprogrammed . | . . . . . Reused . | . . . . . Traps Extracted . | . . . . . Installed . | . . . . . Triggered . | . . . . . Machines | -11 -10 -10 -9 -9 ---------- Run | Scr Mat Min Mat Min Machines Disabled 4 | . 2 . . 2 Max in Single Turn 1 | . 1 . . 1 Machines Sabotaged 1 | . . . 1 . Garrisons Compromised . | . . . . . Overloaded Fab Kills . | . . . . . Hacking | -11 -10 -10 -9 -9 --------- Run | Scr Mat Min Mat Min Machines Accessed 7 | . 3 . 4 . Terminals 3 | . 1 . 2 . Fabricators . | . . . . . Repair Stations 1 | . . . 1 . Recycling Units 3 | . 2 . 1 . Scanalyzers . | . . . . . Garrison Access . | . . . . . Total Hacks 14 | . 4 . 10 . Successful 12 | . 4 . 8 . Failed 2 | . . . 2 . Catastrophic . | . . . . . Database Lockouts . | . . . . . Manual 2 | . 1 . 1 . Terminals 6 | . 1 . 5 . Fabricators . | . . . . . Repair Stations 2 | . . . 2 . Recycling Units 6 | . 3 . 3 . Scanalyzers . | . . . . . Garrison Access . | . . . . . Terminal Hacks 3 | . . . 3 . Record 1 | . . . 1 . Alert Level 2 | . . . 2 . Fabricator Hacks . | . . . . . Repair Station Hacks 2 | . . . 2 . Scan Component 1 | . . . 1 . Repair 1 | . . . 1 . Recycling Unit Hacks 5 | . 3 . 2 . Recycle Component 1 | . 1 . . . Process 1 | . 1 . . . Report Inventory 2 | . 1 . 1 . Retrieve Components 1 | . . . 1 . Scanalyzer . | . . . . . Garrison Access Hacks . | . . . . . Unauthorized Hacks 2 | . 1 . 1 . Terminals 2 | . 1 . 1 . Sabotage 2 | . 1 . 1 . Fabricators . | . . . . . Repair Stations . | . . . . . Recycling Units . | . . . . . Scanalyzers . | . . . . . Garrison Access . | . . . . . Data Cores Recovered 1 | . . . 1 . Used 1 | . . . 1 . Hacking Detections 3 | . 1 . 2 . Full Trace Events . | . . . . . Feedback Events . | . . . . . Feedback Blocked . | . . . . . Robot Schematics Acquired . | . . . . . Robots Built . | . . . . . Authchips . | . . . . . Time . | . . . . . Total Robot Build Rating . | . . . . . Part Schematics Acquired . | . . . . . Parts Built . | . . . . . Authchips . | . . . . . Time . | . . . . . Total Part Build Rating . | . . . . . Parts Repaired 1 | . . . 1 . Time 26 | . . . 26 . Parts Recycled 1 | . 1 . . . Recycled Matter 25 | . 25 . . . Retrieved Matter . | . . . . . Retrieved Components 9 | . . . 9 . Parts Scanalyzed . | . . . . . Part Schematics Acquired . | . . . . . Parts Damaged . | . . . . . Bothacking | -11 -10 -10 -9 -9 ------------ Run | Scr Mat Min Mat Min Used RIF Installer . | . . . . . Robots Hacked . | . . . . . Non-combat . | . . . . . Combat . | . . . . . Robot Hacks Applied . | . . . . . Relay Couplers Released . | . . . . . Fabnet Peak Effective % . | . . . . . Robots Rewired . | . . . . . Allies Hacked . | . . . . . Hacks Repelled . | . . . . . Allies | -11 -10 -10 -9 -9 -------- Run | Scr Mat Min Mat Min Total Allies 3 | . . 3 . . Largest Group 3 | . . 3 1 . Highest-Rated Group 40 | . . 40 16 . Highest-Rated Ally 16 | . . 16 16 . Total Orders . | . . . . . Ally Attacks 14 | . . 9 5 . Total Damage 148 | . . 74 74 . Kills 5 | . . 2 3 . Allies Corrupted . | . . . . . Allies Melted . | . . . . . Intel | -11 -10 -10 -9 -9 ------- Run | Scr Mat Min Mat Min Robot Analysis Total . | . . . . . Derelict Logs Recovered . | . . . . . Drone Launches . | . . . . . Drone Recoveries . | . . . . . Exploration | -11 -10 -10 -9 -9 ------------- Run | Scr Mat Min Mat Min Turns Passed 1771 | 147 408 212 867 137 Spaces Moved 994 | 109 212 126 504 43 Core 22 | 21 . . . 1 Treads . | . . . . . Legs 972 | 88 212 126 504 42 Wheels . | . . . . . Hover . | . . . . . Flight . | . . . . . Fastest Speed 50 | 50 120 120 120 100 Average Speed 118 | 106 120 120 120 119 Slowest Speed 190 | 120 120 120 190 120 Overloaded Moves . | . . . . . Propulsion Burnouts . | . . . . . Robots Hopped . | . . . . . Cave-ins Triggered . | . . . . . Exploration Rate (%) 24 | 6 28 36 40 12 Regions Visited 4 Branch Regions 2 Pre-discovered Areas . | . . . . . Known Exits Taken 1 | . 1 . . . Unknown Exits Taken 3 | 1 . 1 1 . Scrap Searched 3 | . . 1 . 2 Spaces Dug . | . . . . . Terrain Destroyed 17 | . 4 . . 13 Melee . | . . . . . Projectile . | . . . . . AOE 17 | . 4 . . 13 Terrain Rammed . | . . . . . Walls Destroyed . | . . . . . Machines Disabled . | . . . . . Actions | -11 -10 -10 -9 -9 --------- Run | Scr Mat Min Mat Min Total 1421 | 135 320 165 712 89 Wait 212 | . 59 17 124 12 Move 990 | 108 211 125 503 43 Hop . | . . . . . Pick Up 48 | 12 8 6 20 2 Fast Attach . | . . . . . Attach 36 | 7 5 3 15 6 Detach 10 | . 4 1 5 . Swap . | . . . . . Drop 22 | 3 6 1 12 . Fire 100 | 5 25 12 33 25 Melee . | . . . . . Ram . | . . . . . Kick 3 | . 2 . . 1 Crush . | . . . . . Escape Stasis . | . . . . . Rewire . | . . . . . Trap . | . . . . . Miscellaneous . | . . . . . Route ------- -11/Scrapyard -10/Materials -10/Mines -9/Materials -9/Mines History --------- Turn | Location | Event 2 | -11/Scrapyard | Met Revision 17 120 | -11/Scrapyard | Discovered new exit (range 8) 148 | -11/Scrapyard | Entered Materials 318 | -10/Materials | Build established: Mutant 513 | -10/Materials | Discovered new exit (range 11) 555 | -10/Materials | Identified exit to Mines 556 | -10/Materials | Entered Mines 602 | -10/Mines | Assisted by bots powering up and referring to "LRC-V3" 732 | -10/Mines | Discovered new exit (range 14) 740 | -10/Mines | Joined a pair of Derelicts in attacking an 0b10 outpost 768 | -10/Mines | Entered Materials 768 | -9/Materials | Accompanied by 1 ally 768 | -9/Materials | Evolved 2 slots: Utility x2 1028 | -9/Materials | Destroyed 8 combat bots 1038 | -9/Materials | Lost 3 parts (1p2u) 1293 | -9/Materials | Build established: Scavenger-Mutant 1399 | -9/Materials | Discovered new exit (range 14) 1471 | -9/Materials | Repaired Grenade Launcher 1635 | -9/Materials | Entered Mines 1636 | -9/Mines | Assembled infested the area 1688 | -9/Mines | Core integrity fell below 50% 1723 | -9/Mines | Destroyed 9 combat bots 1737 | -9/Mines | Core integrity fell below 20% 1744 | -9/Mines | Lost 8 parts (2p2n1u3w) 1772 | -9/Mines | Destroyed by as-50254 with Assembled Heavy Rifle Last Messages --------------- Knocked back. Acquired 13 matter. System corrupted: IFF burst signal emitted. Acquired 2 matter. Acquired EM Pulse Gun. as-02776 destroyed. Acquired 10 matter. Acquired 6 matter. as-18279 destroyed. Lgt. Deuterium Engine destroyed. as-38571 destroyed. as-31003 destroyed. Overheating: Aluminum Leg damaged (-24). Aluminum Leg destroyed. Acquired Lgt. Ion Engine. Particle Cannon destroyed. Weight Redist. System destroyed. R-06 Scavenger collects Corrupted Lgt. Ion Engine. as-27362 destroyed. [Achievement: Exterminator] Map ----- +----------------------------------------------------+ | ?????????????????????????????????????????????????? | | ?????????????????????????????????????????????????? | | ?????????????????????????????????????????????????? | | ?????????????????????????????????????????????????? | | ?????????????????????????????????????????????????? | | ?????????????????????????????????????????????????? | | ?????????????????????????????????????????????????? | | ?????????????????????????????????????????????????? | | ?????????????????????????????????????????????????? | | ?????????????????????????????????????????????????? | | ?????????????????????????????????????????????????? | | ?????????????????????????????????????????????????? | | ?????????????????????????????????????????????????? | | ?????????????????????????????????????????????????? | | ?????????????????????????????????????????????????? | | ??????????????###????????????????????????????????? | | ??????????????# #???????????????????###?????????? | | ?????????????## ???????????????????# #####?????? | | ?????????????# ???????????????????# ##????? | | ?????????????# ??????????????????## #????? | | ?????????????# ???###????????????# #????? | | ??????????????# #### ##???????????# #????? | | ???????????????# ##??????????# #????? | | ??????????????## ##?????????# %% #????? | | ??????# ## # ##r %#?????????# % % #????? | | ?? ## @########### #????? | | ?? ## =%a=%/%%/=!% % #????? | | ?????### ## ####### %########### " #????? | | ???????????## ??????####?????????### #????? | | ????????????###??????????????????????# """ #????? | | ?????????????????????????????????????# """ #????? | | ?????????????????????????????????????# """ #????? | | ?????????????????????????????????????# #????? | | ?????????????????????????????????????########????? | | ?????????????????????????????????????????????????? | | | | | | | | | | | | | | | | | | | | | | | | | | | | | | | +----------------------------------------------------+ Best States ------------- Heat Dissipation 38 Energy Generation 14 Energy Capacity 265 Matter Stores 350 Matter Capacity 350 Sight Range 16 Terrain Scan Density 10 Additional Mass Support 6 Armor Coverage 150 Resistance: KI 20 Resistance: TH 20 Resistance: EX 20 Resistance: EM 20 Resistance: I 20 Resistance: S 20 Resistance: P 20 Weapon Shielding 33 Evasion (%) 55 Targeting Accuracy 10 Offensive Hacking 10 Item Schematics ----------------- None Robot Schematics ------------------ None Fabricated ------------ Nothing Alien Tech Used ----------------- None Achievements -------------- Brute Force Dynamic Key Exterminator Let's See Who's Tougher Part-time Mechanic Quick And Dirty Challenges ------------ None Game ------ Seed WardroneSurveybotClaw Manual? 0 Play Time 00:53:35 Cumulative 5.5 hours Start 2022.12.11 @ 22:44:42 End 2022.12.18 @ 14:54:20 Sessions 6 Manual Loads 0 Difficulty Adventurer Special Mode None Game No. 3 Rogue 0 Adventurer 3 Explorer 0 Win Type - Total 0 Types 0/0/0/0/0/0/0/0/0 Lore% 3 Gallery% 10 Achievement% 12 Wizard Run 0 Options --------- ASCII 0 Keyboard 1 Movement Numpad Keybinds 0 Fullscreen 2 Font 18/Terminus Map View 76x50 Tactical HUD 0 Map Filters NONE Filters NONE Steam 1 RUN: 3584afbc-2c11-424c-9406-1be133c00f19